Cogmind - Beta 14 @@@ ROGUE MODE // 2024.11.01 @ 14:42:43 Player: Briarspitter Result: Destroyed self via exploding Nuclear Reactor Performance ------------- Evolutions (0) 0 Regions Visited (1) 200 Robots Destroyed (18) 90 Value Destroyed (292) 292 Prototype IDs (4) 80 Alien Tech Used (0) 0 Bonus (0) 0 TOTAL SCORE: 662 Bonus ------- None Cogmind --------- Core Integrity 0/250 Matter 246/300 Energy 125/125 System Corruption 0% Temperature Cool (15) Movement Walking (120) Location -10/Materials Parts ------- > --- POWER (1) -------- Light Ion Engine > --- PROPULSION (2) --- Aluminum Leg Aluminum Leg > --- UTILITY (2) ------ Small Storage Unit Visual Processing Unit > --- WEAPON (2) ------- Light Assault Rifle Light Cannon > --- INVENTORY (8) ---- Light Ion Engine Improved Heat Sink Signal Interpreter EM Pulse Gun Light Assault Rifle Grenade Launcher Mining Laser Peak State ------------ > --- POWER ------------ Light Nuclear Core > --- PROPULSION ------- Aluminum Leg Aluminum Leg > --- UTILITY ---------- Small Storage Unit Improved Terrain Scanner > --- WEAPON ----------- EM Pulse Gun Assault Rifle > --- INVENTORY -------- Light Ion Engine Aluminum Leg Improved Heat Sink Visual Processing Unit Signal Interpreter Light Assault Rifle Grenade Launcher Grenade Launcher [Rating: 12] Favorites ----------- Power Light Ion Engine Engine Light Ion Engine Power Core Light Nuclear Core Propulsion Aluminum Leg Leg Aluminum Leg Utility Small Storage Unit Device Improved Terrain Scanner Storage Small Storage Unit Processor Visual Processing Unit Weapon Assault Rifle Energy Gun EM Pulse Gun Ballistic Gun Assault Rifle Ballistic Cannon Light Cannon Build | -11 -10 ------- Run | Yrd Mat Slots Evolved . | . . Power . | . . Propulsion . | . . Utility . | . . Weapon . | . . Parts Attached 19 | 8 11 Power 4 | 2 2 Engine 3 | 2 1 Core 1 | . 1 Reactor . | . . Propulsion 5 | 2 3 Treads . | . . Leg 5 | 2 3 Wheel . | . . Hover . | . . Flight . | . . Utility 3 | 2 1 Device 1 | 1 . Storage 1 | 1 . Processor 1 | . 1 Hackware . | . . Protection . | . . Artifact . | . . Weapon 7 | 2 5 Energy Gun 1 | . 1 Energy Cannon . | . . Ballistic Gun 5 | 2 3 Ballistic Cannon 1 | . 1 Launcher . | . . Special Weapon . | . . Impact Weapon . | . . Slashing Weapon . | . . Piercing Weapon . | . . Special Melee Weapon . | . . Unidentified Prototypes . | . . Parts Lost 3 | . 3 Power 1 | . 1 Propulsion 1 | . 1 Utility 1 | . 1 Weapon . | . . Highest Loss Streak 1 | . 1 To Critical Strikes . | . . Average Slot Usage (%) 96 | . 96 Engine 8 | . 8 Core 2 | . 2 Leg 28 | . 28 Device 9 | . 9 Storage 14 | . 14 Processor 4 | . 4 Energy Gun 1 | . 1 Ballistic Gun 25 | . 25 Ballistic Cannon 1 | . 1 Peak Build Rating 12 | 9 12 Average Rating 8 | 6 9 On Entrance 4 | . 9 Naked Turns . | . . Heaviest Build 15 | 13 15 Greatest Support 20 | 20 20 Greatest Overweight (x) 1 | 1 . Average Overweight (x) . | . . Largest Inventory Capacity 8 | 8 8 Average Capacity 7 | 7 8 Most Carried 8 | 7 8 Average Carried 6 | 2 7 Final Capacity 8 | 8 8 Final Carried 7 | 5 7 Class Distribution -------------------- 73% | Mutant 26% | Scavenger-Mutant Dominant Class ---------------- Mutant | -10/Materials Resources | -11 -10 ----------- Run | Yrd Mat Matter Collected 550 | 244 306 Remotely . | . . Salvage Created 358 | 75 283 Parts 37 | 4 33 Haulers Intercepted . | . . Recyclers Shooed . | . . Parts Field Recycled . | . . Retrieved Matter . | . . Parts Self-Destructed . | . . Prevented . | . . Kills | -11 -10 ------- Run | Yrd Mat Combat Hostiles Destroyed 12 | . 12 Guns 9 | . 9 Cannons 1 | . 1 AOE 2 | . 2 Classes Destroyed 6 | 2 4 Tunneler 1 | 1 . Recycler 1 | 1 . Operator 1 | . 1 Watcher 3 | . 3 Swarmer 9 | . 9 Grunt 3 | . 3 Best Kill Streak 4 | 1 4 Combat Bots Only 3 | . 3 Max Kills in Single Turn 2 | 1 2 Gunslinging . | . . Exploded 2 | . 2 Melee . | . . Uniques/NPCs Destroyed . | . . Combat | -11 -10 -------- Run | Yrd Mat Hostile Shots Fired 81 | . 81 Missed 18 | . 18 Damage Taken 903 | . 903 Core 265 | . 265 Absorbed by Shields . | . . Core Remaining (%) 100 | 100 . Volleys Fired 53 | 6 47 Largest 2 | 2 2 Hottest 60 | 40 60 Shots Fired 106 | 12 94 Gun 99 | 12 87 Cannon 7 | . 7 Launcher . | . . Special . | . . Kinetic 105 | 12 93 Thermal . | . . Explosive . | . . Electromagnetic 1 | . 1 Robot Hit Streak 6 | 5 6 Robot Miss Streak 3 | 1 3 Penetration Max . | . . Secondary Targets 2 | . 2 Max Gunslinging Chain 1 | . 1 Shots Hit Robots 56 | 7 49 Core Hits 27 | 4 23 Critical Kills 1 | . 1 Critical Parts Destroyed . | . . Critical Strikes 2 | . 2 Destroy 1 | . 1 Blast 1 | . 1 Melee Attacks . | . . Impact . | . . Slashing . | . . Piercing . | . . Sneak Attacks . | . . Combat Hostiles . | . . Follow-up Attacks . | . . Damage Inflicted 858 | 69 789 Guns 544 | 69 475 Cannons 103 | . 103 Explosions 211 | . 211 Melee . | . . Ramming . | . . Kinetic 647 | 69 578 Thermal . | . . Explosive 211 | . 211 Electromagnetic . | . . Impact . | . . Slashing . | . . Piercing . | . . Highest Corruption . | . . Average Corruption . | . . Corruption Purged . | . . Corruption Blocked . | . . Overload Shots . | . . Overflow Damage 24 | . 24 Projectiles 16 | . 16 Explosions 8 | . 8 Melee . | . . Knockbacks 2 | . 2 Impact . | . . Kinetic 2 | . 2 Secondary . | . . Self-Inflicted Damage 85 | . 85 Shots 1 | . 1 Rammed . | . . Targets Rammed 1 | . 1 Kicked 1 | . 1 Crushed . | . . Highest Temperature 28 | . 28 Average Temperature 10 | . 10 Received Heat Transfer 279 | . 279 Siege Activations . | . . Robots Corrupted . | . . Combat Hostiles . | . . Parts Fried . | . . Impact Corruptions . | . . Robots Melted . | . . Combat Hostiles . | . . Parts Melted . | . . Heat Transferred . | . . Parts Sabotaged . | . . Parts Stolen . | . . Parts Stripped . | . . Power Chain Reactions . | . . Alert | -11 -10 ------- Run | Yrd Mat Peak Influence 172 | 10 172 Initial 6 | . 6 Average 68 | 3 82 Maximum Alert Level . | . . Low Security (%) 100 | 100 100 Level 1 . | . . Level 2 . | . . Level 3 . | . . Level 4 . | . . Level 5 . | . . High Security . | . . Max Security . | . . Squads Dispatched . | . . Investigation . | . . Extermination . | . . Reinforcement . | . . Assault . | . . Garrison . | . . Intercept . | . . Searches Triggered . | . . Construction Impeded . | . . Haulers Reinforced . | . . Active Scanning Responses . | . . Cargo Convoy Interrupts . | . . Stealth | -11 -10 --------- Run | Yrd Mat Distress Signals . | . . Communications Jammed . | . . Distress Signals . | . . Times Spotted 20 | . 20 Peak Tracking Total 4 | . 4 Tactical Retreats . | . . Traps | -11 -10 ------- Run | Yrd Mat Traps Triggered 3 | . 3 Indirectly . | . . Trap Hack Attempts . | . . Triggered . | . . Disarmed . | . . Reprogrammed . | . . Reused . | . . Traps Extracted . | . . Installed . | . . Triggered . | . . Machines | -11 -10 ---------- Run | Yrd Mat Machines Disabled 1 | . 1 Max in Single Turn 1 | . 1 Machines Repaired . | . . Machines Dismantled . | . . Machines Sabotaged . | . . Overloaded Fab Kills . | . . Hacking | -11 -10 --------- Run | Yrd Mat Machines Accessed 4 | . 4 Terminals 4 | . 4 Fabricators . | . . Repair Stations . | . . Recycling Units . | . . Scanalyzers . | . . Garrison Access . | . . Total Hacks 7 | . 7 Successful 5 | . 5 Failed 2 | . 2 Catastrophic . | . . Database Lockouts . | . . Manual . | . . Terminals 7 | . 7 Fabricators . | . . Repair Stations . | . . Recycling Units . | . . Scanalyzers . | . . Garrison Access . | . . Terminal Hacks 5 | . 5 Record 3 | . 3 Prototype ID Bank 2 | . 2 Fabricator Hacks . | . . Repair Station Hacks . | . . Recycling Unit Hacks . | . . Scanalyzer . | . . Garrison Access Hacks . | . . Unauthorized Hacks . | . . Terminals . | . . Fabricators . | . . Repair Stations . | . . Recycling Units . | . . Scanalyzers . | . . Garrison Access . | . . Data Cores Recovered 1 | . 1 Used . | . . Hacking Detections 2 | . 2 Full Trace Events . | . . Feedback Events . | . . Feedback Blocked . | . . Robot Schematics Acquired . | . . Robots Built . | . . Authchips . | . . Time . | . . Total Robot Build Rating . | . . Part Schematics Acquired . | . . Parts Built . | . . Authchips . | . . Time . | . . Total Part Build Rating . | . . Parts Repaired . | . . Time . | . . Parts Recycled . | . . Recycled Matter . | . . Retrieved Matter . | . . Retrieved Components . | . . Parts Scanalyzed . | . . Part Schematics Acquired . | . . Parts Damaged . | . . Bothacking | -11 -10 ------------ Run | Yrd Mat Used RIF Installer . | . . Robots Hacked . | . . Non-combat . | . . Combat . | . . Robot Hacks Applied . | . . Relay Couplers Released . | . . Fabnet Peak Effective % . | . . Robots Rewired . | . . Allies Hacked . | . . Hacks Repelled . | . . Allies | -11 -10 -------- Run | Yrd Mat Total Allies . | . . Largest Group . | . . Highest-Rated Group . | . . Highest-Rated Ally . | . . Total Orders . | . . Ally Attacks . | . . Total Damage . | . . Kills . | . . Allies Corrupted . | . . Allies Melted . | . . Intel | -11 -10 ------- Run | Yrd Mat Robot Analysis Total . | . . Derelict Logs Recovered . | . . Drone Launches . | . . Drone Recoveries . | . . Exploration | -11 -10 ------------- Run | Yrd Mat Turns Passed 827 | 143 684 Spaces Moved 504 | 89 415 Core 17 | 17 . Treads . | . . Legs 487 | 72 415 Wheels . | . . Hover . | . . Flight . | . . Fastest Speed 50 | 50 120 Average Speed 119 | 115 120 Slowest Speed 120 | 120 120 Overloaded Moves . | . . Propulsion Burnouts . | . . Robots Hopped . | . . Cave-ins Triggered . | . . Exploration Rate (%) 33 | 4 62 Regions Visited 1 Branch Regions . Pre-discovered Areas . | . . Known Exits Taken . | . . Unknown Exits Taken 1 | 1 . Scrap Searched . | . . Spaces Dug . | . . Terrain Destroyed . | . . Melee . | . . Projectile . | . . AOE . | . . Terrain Rammed . | . . Walls Destroyed . | . . Machines Disabled . | . . Actions | -11 -10 --------- Run | Yrd Mat Total 638 | 119 519 Wait 24 | 4 20 Move 503 | 88 415 Hop . | . . Pick Up 26 | 12 14 Fast Attach 3 | . 3 Attach 13 | 8 5 Detach 1 | 1 . Swap 3 | . 3 Drop 11 | . 11 Fire 53 | 6 47 Melee . | . . Ram . | . . Kick 1 | . 1 Crush . | . . Escape Stasis . | . . Rewire . | . . Trap . | . . Miscellaneous . | . . Route ------- -11/Scrapyard -10/Materials (discovered 2 exits: [*Mat] / [*Min]) History --------- Turn | Location | Event 8 | -11/Scrapyard | Discovered new exit (range 15) 144 | -11/Scrapyard | Entered Materials 305 | -10/Materials | Build established: Mutant 437 | -10/Materials | Discovered new exit (range 12) 588 | -10/Materials | Core integrity fell below 50% 703 | -10/Materials | Discovered new exit (range 16) 828 | -10/Materials | Destroyed self via exploding Nuclear Reactor Last Messages --------------- U-05 Engineer lays Concrete. Triggered Explosive Trap. An explosion rips through the floor. Aluminum Leg destroyed. U-05 Engineer lays Concrete. U-05 Engineer builds a Wall. U-05 Engineer lays Concrete. S-10 Pest destroyed. U-05 Engineer lays Concrete. Nuclear Reactor explodes. U-05 Engineer destroyed. W-16 Scout destroyed. K-01 Serf knocked back. S-10 Pest Flight Unit blasted off. Destroyed Flight Unit. S-10 Pest knocked back. Nuclear Reactor explodes. S-10 Pest destroyed. Destroyed Flight Unit. S-10 Pest destroyed. Map ----- +----------------------------------------------------+ | ???????????# """# #???##########??# ####????# | | ???????????# [ # #???# #?##?# #???????# | | ??#????#########+### #??## #???## ######### | | ???????# # #???# ""#???# | | ???????# """ # #??## T"#??## ^ | | ???????# """ + #???# ""#???# ^"""" ^ ]] | | ???????# """ #^ ^######### [ #???# """" ]] | | ???????#! #^^^^# ##+######### """" ]] | | ???????# ! # =% | | ? ????######## < | | ######### ######## | | ##" "####### #######?????# | | ##" "! "#?????# #??#???#?#??# | | ##"""""""#?????# ##?????????## | | ?############## ################ #???? ? ????# | | ?# ## ##????? # #? ?????T?#?# | | ?# """ # ###### """ # #??????????? | | ?#""""" # # """ # #???????????# | | ?#""""" + + %""" + +?????? ????? | | ?#""""" # # =* # #???????????? | | ?# """ # ### ## # #???????????? | | ?# #######?# ##* # ###???????????? | | ?#############???????# ## # ??????????????? | | ????????????????????## # [ # ??????????????? | | ????????????????????# ## #?????????????? | | ????????????????????# @ #?????????????? | | ????????????????????# "#????????????? | | ????????????????????# !k%! !!! T#????????????? | | ????????????????????## ** !! "#????????????? | | ????????????????????## !! ##????????????? | | ?????????????????????# #?????????????? | | ????????????????????? r #?????????????? | | ????????????????????##t #?????????????? | | ????????????????????? ## # #### #?????????????? | | ????????????????????#########??? #?????????????? | | ????????????????????????????????? #?????????????? | | ?????????????????????????????????? +?????????????? | | ???????????????????????????????????#?????????????? | | ?????????????????????????????????????????????????? | | ?????????????????????????????????????????????????? | | ?????????????????????????????????????????????????? | | ?????????????????????????????????????????????????? | | ?????????????????????????????????????????????????? | | ?????????????????????????????????????????????????? | | ?????????????????????????????????????????????????? | | ?????????????????????????????????????????????????? | | ?????????????????????????????????????????????????? | | ?????????????????????????????????????????????????? | | | | | +----------------------------------------------------+ Best States ------------- Heat Dissipation 25 Energy Generation 14 Energy Capacity 250 Matter Stores 300 Matter Capacity 300 Sight Range 18 Terrain Scan Range 16 Terrain Scan Density 10 Evasion (%) 55 Item Schematics ----------------- None Robot Schematics ------------------ None Fabricated ------------ Nothing Alien Tech Used ----------------- None Achievements -------------- None Challenges ------------ None Game ------ Seed BattleTacticalMatter Manual? 0 Play Time 00:21:54 Cumulative 15.4 hours Start 2024.11.01 @ 13:13:43 End 2024.11.01 @ 14:42:43 Sessions 1 Manual Loads 0 Difficulty Rogue Special Mode None Game No. 14 Rogue 14 Adventurer 0 Explorer 0 Win Type - Total 0 Types 0/0/0/0/0/0/0/0/0 Lore% 10 Gallery% 22 Achievement% 18 Wizard Run 0 Options --------- Layout 1 ASCII 0 Keyboard 0 Movement Numpad Keybinds 0 Fullscreen 1 Font 24/Smallcaps Map View 50x35 Zoom Use 0% Tactical HUD 0 Map Filters NONE Filters NONE Steam 1 RUN: c08f3bf0-46cd-4fbe-8a7d-6d74d32fb1ae